[Event "ESCC-50 2022"]
[Site "Lublin"]
[Date "2022.07.09"]
[Round "5.6"]
[White "Kirszenberg, Marc"]
[Black "Zielinski, Olgierd"]
[Result "1/2-1/2"]
[ECO "D91"]
[WhiteElo "2056"]
[BlackElo "1816"]
[Annotator "NA RC"]
[PlyCount "77"]
[EventDate "2022.07.05"]
[EventType "swiss"]
[EventCountry "POL"]
[SourceTitle "playchess.com"]
[Source "ChessBase"]
[SourceQuality "1"]
[TimeControl "40/5400+30:1800+30"]

1. d4 {[%emt 0:00:02]} Nf6 {[%emt 0:00:09]} 2. c4 {[%emt 0:00:05]} g6 {[%emt 0:00:08]} 3. Nc3 {[%emt 0:00:05]} d5 {[%emt 0:00:17]} 4. Nf3 {[%emt 0:00:10]} Bg7 {[%emt 0:00:24]} 5. Bg5 {[%emt 0:00:10]} Ne4 {[%emt 0:00:36]} 6. Bf4 {[%emt 0:00:07]} c5 {[%emt 0:00:41]} 7. Nxd5 {[%emt 0:02:53]} Na6 {[%emt 0:00:10]} 8. e3 {[%emt 0:01:22]} Qa5+ {[%emt 0:00:28]} 9. Nc3 {[%emt 0:00:37]} Bf5 {[%emt 0:03:47]} 10. Qb3 {[%emt 0:04:37]} Nb4 {[%emt 0:08:06]} 11. Rc1 {[%emt 0:00:16]} Nxc3 {[%emt 0:05:35]} 12. Qxc3 {[%emt 0:03:20]} Qxa2 {[%emt 0:02:39]} 13. Be2 {[%emt 0:01:01]} Qa6 {[%emt 0:00:27]} 14. Qb3 {[%emt 0:01:15]} Qb6 {[%emt 0:05:17]} 15. O-O {[%emt 0:02:18]} O-O {[%emt 0:01:00]} 16. Be5 {[%emt 0:13:58]} a5 {[%emt 0:11:54]} 17. dxc5 {[%emt 0:02:14]} Qxc5 {[%emt 0:00:17]} 18. Bd4 {[%emt 0:00:20]} Qc7 {[%emt 0:00:40]} 19. Bxg7 {[%emt 0:00:54]} Kxg7 {[%emt 0:00:15]} 20. c5 {[%emt 0:09:09]} e5 {[%emt 0:07:24]} 21. Qc4 {[%emt 0:12:59]} Rfd8 {[%emt 0:02:34]} 22. g4 {[%emt 0:02:25]} Be6 {[%emt 0:30:52]} 23. Qe4 {[%emt 0:00:20]} Na2 {[%emt 0:00:22]} 24. Ra1 {[%emt 0:09:05]} Qxc5 {[%emt 0:00:35]} 25. Qxe5+ {[%emt 0:01:02]} Qxe5 {[%emt 0:00:10]} 26. Nxe5 {[%emt 0:00:05]} Rd2 {[%emt 0:00:56]} 27. Bc4 {[%emt 0:00:28]} Rxb2 {[%emt 0:01:00]} 28. Bxe6 {[%emt 0:00:30]} fxe6 {[%emt 0:00:02]} 29. Rfd1 {[%emt 0:01:53]} Rc8 {[%emt 0:06:44]} 30. Rd7+ {[%emt 0:00:35]} Kg8 {[%emt 0:00:30]} 31. g5 {[%emt 0:01:19]} Rcc2 {[%emt 0:02:25]} 32. Ng4 {[%emt 0:01:42]} a4 {[%emt 0:01:40]} 33. Rad1 {[%emt 0:01:23]} Rc1 {[%emt 0:00:14]} 34. Nf6+ {[%emt 0:00:33]} Kf8 {[%emt 0:00:08]} 35. Nxh7+ {[%emt 0:00:14]} Kg8 {[%emt 0:00:52]} 36. Nf6+ {[%emt 0:00:06]} Kf8 {[%emt 0:00:05]} 37. Nh7+ {[%emt 0:04:55]} Kg8 {[%emt 0:00:01]} 38. Nf6+ {[%emt 0:00:12]} Kf8 {[%emt 0:00:02]} 39. Nh7+ {[%emt 0:01:48]} 1/2-1/2

[Event "ESCC-50 2022"]
[Site "Lublin"]
[Date "2022.07.09"]
[Round "5.7"]
[White "Leszner, Liliana"]
[Black "Pietinen, Pekka"]
[Result "0-1"]
[ECO "C00"]
[WhiteElo "1872"]
[BlackElo "1937"]
[Annotator "NA RC"]
[PlyCount "94"]
[EventDate "2022.07.05"]
[EventType "swiss"]
[EventCountry "POL"]
[SourceTitle "playchess.com"]
[Source "ChessBase"]
[SourceQuality "1"]
[TimeControl "40/5400+30:1800+30"]

1. e4 {[%emt 0:00:02]} e6 {[%emt 0:00:12]} 2. d3 {[%emt 0:00:16]} d5 {[%emt 0:00:39]} 3. Nd2 {[%emt 0:00:05]} c5 {[%emt 0:03:21]} 4. g3 {[%emt 0:00:13]} dxe4 {[%emt 0:03:54]} 5. dxe4 {[%emt 0:00:08]} Bd7 {[%emt 0:00:27]} 6. Ngf3 {[%emt 0:04:14]} Nc6 {[%emt 0:03:20]} 7. c3 {[%emt 0:00:47]} Nf6 {[%emt 0:01:19]} 8. Bg2 {[%emt 0:02:16]} Qc7 {[%emt 0:02:09]} 9. O-O {[%emt 0:01:01]} Be7 {[%emt 0:01:00]} 10. Re1 {[%emt 0:04:54]} e5 {[%emt 0:06:53]} 11. Nc4 {[%emt 0:03:14]} Be6 {[%emt 0:02:00]} 12. Qe2 {[%emt 0:01:48]} Bxc4 {[%emt 0:05:19]} 13. Qxc4 {[%emt 0:00:04]} O-O {[%emt 0:00:18]} 14. Nh4 {[%emt 0:03:21]} Nd7 {[%emt 0:05:17]} 15. Nf5 {[%emt 0:00:47]} Nb6 {[%emt 0:00:18]} 16. Qe2 {[%emt 0:00:40]} Bf6 {[%emt 0:03:34]} 17. a4 {[%emt 0:03:15]} Kh8 {[%emt 0:06:50]} 18. Ne3 {[%emt 0:02:52]} Ne7 {[%emt 0:07:52]} 19. Ng4 {[%emt 0:02:30]} Ng8 {[%emt 0:02:37]} 20. f4 {[%emt 0:02:41]} Nd7 {[%emt 0:00:58]} 21. Ne3 {[%emt 0:07:53]} Qc6 {[%emt 0:01:41]} 22. Nc4 {[%emt 0:03:22]} Rae8 {[%emt 0:02:32]} 23. f5 {[%emt 0:06:07]} Nb6 {[%emt 0:02:52]} 24. Na5 {[%emt 0:04:27]} Qc7 {[%emt 0:00:59]} 25. Bf1 {[%emt 0:02:14]} Rb8 {[%emt 0:03:48]} 26. Be3 {[%emt 0:03:44]} Be7 {[%emt 0:02:41]} 27. g4 {[%emt 0:01:35]} Bh4 {[%emt 0:00:59]} 28. Red1 {[%emt 0:00:50]} Qe7 {[%emt 0:00:19]} 29. Qb5 {[%emt 0:01:39]} Rfc8 {[%emt 0:03:27]} 30. Nb3 {[%emt 0:06:06]} c4 {[%emt 0:02:15]} 31. Nd2 {[%emt 0:00:19]} Bg5 {[%emt 0:01:02]} 32. Bf2 {[%emt 0:01:15]} Bh4 {[%emt 0:00:15]} 33. Bxb6 {[%emt 0:02:10]} axb6 {[%emt 0:00:37]} 34. Nxc4 {[%emt 0:00:08]} Qg5 {[%emt 0:02:20]} 35. Nxe5 {[%emt 0:01:15]} Nh6 {[%emt 0:02:19]} 36. Qe2 {[%emt 0:02:21]} Re8 {[%emt 0:02:33]} 37. Nc4 {[%emt 0:03:38]} Nxg4 {[%emt 0:00:57]} 38. Qg2 {[%emt 0:03:24]} Qf4 {[%emt 0:02:59]} 39. h3 {[%emt 0:10:42]} Ne3 {[%emt 0:05:58]} 40. Nxe3 {[%emt 0:00:00]} Qxe3+ {[%emt 0:00:00]} 41. Kh1 {[%emt 0:00:51]} Rxe4 {[%emt 0:01:31]} 42. Rd7 {[%emt 0:00:39]} Re7 {[%emt 0:01:04]} 43. Rad1 {[%emt 0:02:24]} h6 {[%emt 0:00:30]} 44. Rd8+ {[%emt 0:01:02]} Rxd8 {[%emt 0:00:07]} 45. Rxd8+ {[%emt 0:00:10]} Kh7 {[%emt 0:00:08]} 46. Rb8 {[%emt 0:05:51]} Qe1 {[%emt 0:01:53]} 47. Kh2 {[%emt 0:09:03]} Qe5+ {[%emt 0:05:50]} 0-1

[Event "ESCC-50 2022"]
[Site "Lublin"]
[Date "2022.07.09"]
[Round "5.8"]
[White "Baliuniene, Margarita"]
[Black "Puroila, Sippo"]
[Result "1-0"]
[ECO "A41"]
[WhiteElo "1935"]
[BlackElo "1803"]
[Annotator "NA RC"]
[PlyCount "51"]
[EventDate "2022.07.05"]
[EventType "swiss"]
[EventCountry "POL"]
[SourceTitle "playchess.com"]
[Source "ChessBase"]
[SourceQuality "1"]
[TimeControl "40/5400+30:1800+30"]

1. d4 {[%emt 0:00:04]} d6 {[%emt 0:00:50]} 2. c4 {[%emt 0:00:37]} g6 {[%emt 0:00:47]} 3. g3 {[%emt 0:00:21]} Bg7 {[%emt 0:00:10]} 4. Bg2 {[%emt 0:00:06]} c6 {[%emt 0:00:08]} 5. Nc3 {[%emt 0:00:29]} Nd7 {[%emt 0:00:35]} 6. e4 {[%emt 0:01:17]} e5 {[%emt 0:00:10]} 7. d5 {[%emt 0:01:22]} c5 {[%emt 0:01:25]} 8. Nge2 {[%emt 0:02:45]} a6 {[%emt 0:00:34]} 9. a3 {[%emt 0:03:49]} Ne7 {[%emt 0:05:40]} 10. O-O {[%emt 0:01:44]} O-O {[%emt 0:00:13]} 11. Be3 {[%emt 0:04:21]} f5 {[%emt 0:01:04]} 12. Qd2 {[%emt 0:01:25]} Rb8 {[%emt 0:04:01]} 13. b4 {[%emt 0:06:01]} b5 {[%emt 0:04:17]} 14. cxb5 {[%emt 0:01:35]} axb5 {[%emt 0:00:09]} 15. bxc5 {[%emt 0:00:51]} Nxc5 {[%emt 0:01:31]} 16. Bxc5 {[%emt 0:06:28]} dxc5 {[%emt 0:04:19]} 17. d6 {[%emt 0:00:11]} Be6 {[%emt 0:01:14]} 18. Rfd1 {[%emt 0:00:38]} Nc6 {[%emt 0:00:14]} 19. exf5 {[%emt 0:00:18]} Bb3 {[%emt 0:01:40]} 20. Bxc6 {[%emt 0:00:55]} Bxd1 {[%emt 0:00:10]} 21. Rxd1 {[%emt 0:00:12]} gxf5 {[%emt 0:01:04]} 22. Qd5+ {[%emt 0:01:00]} Kh8 {[%emt 0:00:02]} 23. Qxc5 {[%emt 0:00:23]} f4 {[%emt 0:00:11]} 24. Ne4 {[%emt 0:03:18]} fxg3 {[%emt 0:01:29]} 25. hxg3 {[%emt 0:00:55]} Qa5 {[%emt 0:05:49]} 26. N2c3 {[%emt 0:03:24]} 1-0

[Event "ESCC-50 2022"]
[Site "Lublin"]
[Date "2022.07.09"]
[Round "5.9"]
[White "Krzyzanowska-Zadlo, Lidia"]
[Black "Krzyzanowski, Wojciech"]
[Result "1/2-1/2"]
[ECO "B23"]
[WhiteElo "1732"]
[BlackElo "1878"]
[Annotator "NA RC"]
[PlyCount "101"]
[EventDate "2022.07.05"]
[EventType "swiss"]
[EventCountry "POL"]
[SourceTitle "playchess.com"]
[Source "ChessBase"]
[SourceQuality "1"]
[TimeControl "40/5400+30:1800+30"]

1. e4 {[%emt 0:00:02]} c5 {[%emt 0:00:05]} 2. Nc3 {[%emt 0:01:14]} Nc6 {[%emt 0:00:06]} 3. f4 {[%emt 0:00:29]} g6 {[%emt 0:00:09]} 4. Nf3 {[%emt 0:00:23]} Bg7 {[%emt 0:00:11]} 5. Bc4 {[%emt 0:11:59]} d6 {[%emt 0:03:17]} 6. O-O {[%emt 0:00:58]} e6 {[%emt 0:00:16]} 7. d3 {[%emt 0:02:44]} Nge7 {[%emt 0:00:31]} 8. Qe1 {[%emt 0:07:06]} O-O {[%emt 0:00:52]} 9. Bb3 {[%emt 0:09:51]} Na5 {[%emt 0:02:59]} 10. Be3 {[%emt 0:05:31]} b6 {[%emt 0:03:20]} 11. Nd1 {[%emt 0:05:57]} Ba6 {[%emt 0:03:22]} 12. c4 {[%emt 0:04:52]} d5 {[%emt 0:00:54]} 13. Rc1 {[%emt 0:06:46]} dxe4 {[%emt 0:03:12]} 14. dxe4 {[%emt 0:00:04]} Nxb3 {[%emt 0:03:00]} 15. axb3 {[%emt 0:00:07]} Nc6 {[%emt 0:02:49]} 16. Nc3 {[%emt 0:01:43]} Na5 {[%emt 0:09:12]} 17. Rd1 {[%emt 0:02:21]} Qe7 {[%emt 0:02:17]} 18. Nd2 {[%emt 0:07:45]} Rad8 {[%emt 0:03:41]} 19. Qe2 {[%emt 0:01:23]} Rd7 {[%emt 0:03:11]} 20. e5 {[%emt 0:06:45]} f5 {[%emt 0:08:42]} 21. Nb5 {[%emt 0:01:28]} Bxb5 {[%emt 0:05:22]} 22. cxb5 {[%emt 0:00:03]} Rfd8 {[%emt 0:01:10]} 23. Nc4 {[%emt 0:01:21]} Nxb3 {[%emt 0:02:52]} 24. Nd6 {[%emt 0:02:42]} Na5 {[%emt 0:07:36]} 25. Ra1 {[%emt 0:01:24]} Rc7 {[%emt 0:10:36]} 26. Ra4 {[%emt 0:04:34]} Nb7 {[%emt 0:11:41]} 27. Nc4 {[%emt 0:00:49]} Qd7 {[%emt 0:00:57]} 28. Rxa7 {[%emt 0:00:32]} Qxb5 {[%emt 0:00:34]} 29. Qc2 {[%emt 0:00:56]} Bf8 {[%emt 0:03:18]} 30. Rfa1 {[%emt 0:01:49]} Rcd7 {[%emt 0:03:19]} 31. R1a6 {[%emt 0:03:05]} Qb4 {[%emt 0:01:19]} 32. Qc3 {[%emt 0:00:59]} b5 {[%emt 0:02:45]} 33. Rb6 {[%emt 0:03:25]} Qxc4 {[%emt 0:00:51]} 34. Qxc4 {[%emt 0:00:15]} bxc4 35. Rbxb7 {[%emt 0:00:32]} Rxb7 {[%emt 0:00:22]} 36. Rxb7 {[%emt 0:00:02]} Rd1+ {[%emt 0:00:54]} 37. Kf2 {[%emt 0:00:03]} Rb1 {[%emt 0:00:19]} 38. Bd2 {[%emt 0:00:59]} Ra1 {[%emt 0:01:04]} 39. Bc3 {[%emt 0:04:39]} Ra4 {[%emt 0:00:53]} 40. h3 {[%emt 0:00:00]} h6 {[%emt 0:00:00]} 41. Kg3 {[%emt 0:07:20]} Ra1 {[%emt 0:04:53]} 42. Kf2 {[%emt 0:02:30]} Rd1 {[%emt 0:00:42]} 43. Ra7 {[%emt 0:01:30]} Rb1 {[%emt 0:03:21]} 44. g4 {[%emt 0:00:37]} Rd1 {[%emt 0:02:17]} 45. gxf5 {[%emt 0:00:54]} gxf5 {[%emt 0:00:03]} 46. Ra4 {[%emt 0:01:39]} Be7 {[%emt 0:02:57]} 47. Rxc4 {[%emt 0:01:24]} Ra1 {[%emt 0:02:15]} 48. Bd2 {[%emt 0:03:17]} Kf7 {[%emt 0:02:09]} 49. Be3 {[%emt 0:01:27]} Ra2 {[%emt 0:02:24]} 50. Bxc5 {[%emt 0:04:50]} Rxb2+ 51. Kg3 1/2-1/2

[Event "ESCC-50 2022"]
[Site "Lublin"]
[Date "2022.07.09"]
[Round "5.10"]
[White "Chwalewski, Marek"]
[Black "Warnk, Torsten"]
[Result "1-0"]
[ECO "A06"]
[WhiteElo "1774"]
[BlackElo "1763"]
[Annotator "NA RC"]
[PlyCount "148"]
[EventDate "2022.07.05"]
[EventType "swiss"]
[EventCountry "POL"]
[SourceTitle "playchess.com"]
[Source "ChessBase"]
[SourceQuality "1"]
[TimeControl "40/5400+30:1800+30"]

1. Nf3 {[%emt 0:01:00]} d5 {[%emt 0:00:23]} 2. g3 {[%emt 0:00:21]} Nf6 {[%emt 0:00:21]} 3. Bg2 {[%emt 0:01:35]} g6 {[%emt 0:00:48]} 4. c4 {[%emt 0:00:41]} c6 {[%emt 0:00:25]} 5. d4 {[%emt 0:02:48]} Bg7 {[%emt 0:00:26]} 6. cxd5 {[%emt 0:00:25]} cxd5 {[%emt 0:00:10]} 7. Nc3 {[%emt 0:01:19]} O-O {[%emt 0:01:34]} 8. O-O {[%emt 0:03:05]} Nc6 {[%emt 0:03:01]} 9. Re1 {[%emt 0:00:17]} a6 {[%emt 0:04:07]} 10. Qb3 {[%emt 0:03:06]} e6 {[%emt 0:07:56]} 11. Bg5 {[%emt 0:00:24]} Qd6 {[%emt 0:06:28]} 12. Rad1 {[%emt 0:01:43]} Qb4 {[%emt 0:05:45]} 13. Qc2 {[%emt 0:00:16]} Bd7 {[%emt 0:07:16]} 14. a3 {[%emt 0:02:37]} Qb6 {[%emt 0:01:21]} 15. b4 {[%emt 0:11:07]} Rac8 {[%emt 0:04:38]} 16. Qd3 {[%emt 0:01:45]} Na7 {[%emt 0:05:11]} 17. Ne5 {[%emt 0:02:08]} Qd6 {[%emt 0:04:40]} 18. Nxd7 {[%emt 0:04:39]} Qxd7 {[%emt 0:00:51]} 19. e4 {[%emt 0:01:22]} dxe4 {[%emt 0:06:54]} 20. Nxe4 {[%emt 0:00:14]} Nxe4 {[%emt 0:01:12]} 21. Qxe4 {[%emt 0:00:22]} Nb5 {[%emt 0:14:45]} 22. Qxb7 {[%emt 0:03:33]} Qxb7 {[%emt 0:00:19]} 23. Bxb7 {[%emt 0:00:08]} Rc3 {[%emt 0:00:24]} 24. Re3 {[%emt 0:05:35]} Bxd4 {[%emt 0:06:35]} 25. Red3 {[%emt 0:06:57]} e5 {[%emt 0:03:40]} 26. Bxa6 {[%emt 0:01:27]} Nxa3 {[%emt 0:01:27]} 27. b5 {[%emt 0:01:25]} Rb8 {[%emt 0:01:53]} 28. Rxc3 {[%emt 0:00:29]} Bxc3 {[%emt 0:00:13]} 29. Rd3 {[%emt 0:00:00]} Bb4 {[%emt 0:01:32]} 30. Bf6 {[%emt 0:02:04]} Nc4 {[%emt 0:01:50]} 31. Rb3 {[%emt 0:02:26]} Ba5 {[%emt 0:00:31]} 32. Rb1 {[%emt 0:01:51]} Bb6 {[%emt 0:02:53]} 33. Rc1 {[%emt 0:02:49]} Nd2 {[%emt 0:01:22]} 34. Kg2 {[%emt 0:04:21]} Bd4 {[%emt 0:00:56]} 35. Re1 {[%emt 0:01:11]} Nc4 {[%emt 0:01:55]} 36. f4 {[%emt 0:01:04]} Rb6 {[%emt 0:01:56]} 37. fxe5 {[%emt 0:01:38]} Re6 {[%emt 0:01:17]} 38. Bc8 {[%emt 0:00:53]} Rb6 {[%emt 0:00:44]} 39. Bd7 {[%emt 0:00:50]} Ne3+ {[%emt 0:00:30]} 40. Kf3 {[%emt 0:00:00]} Nd5 {[%emt 0:00:00]} 41. Bd8 {[%emt 0:04:08]} Rb8 {[%emt 0:01:56]} 42. Bg5 {[%emt 0:01:52]} Nc7 {[%emt 0:03:01]} 43. Ke4 {[%emt 0:01:33]} Bc3 {[%emt 0:01:09]} 44. Rb1 {[%emt 0:03:34]} Ba5 {[%emt 0:04:51]} 45. Be3 {[%emt 0:02:13]} Na8 {[%emt 0:08:30]} 46. Ra1 {[%emt 0:02:07]} Bd8 {[%emt 0:05:23]} 47. Ba7 {[%emt 0:01:30]} Rb7 {[%emt 0:05:07]} 48. Bc6 {[%emt 0:00:16]} Rxa7 {[%emt 0:00:32]} 49. Rxa7 {[%emt 0:00:09]} Nb6 {[%emt 0:00:02]} 50. Bd5 {[%emt 0:01:34]} h5 {[%emt 0:01:08]} 51. Bxf7+ {[%emt 0:01:01]} Kg7 {[%emt 0:00:52]} 52. Bd5+ {[%emt 0:01:17]} Kh6 {[%emt 0:00:05]} 53. e6 {[%emt 0:01:04]} Nc8 {[%emt 0:01:05]} 54. Rd7 {[%emt 0:00:26]} Bf6 {[%emt 0:00:21]} 55. Bb3 {[%emt 0:02:02]} Kg5 {[%emt 0:00:54]} 56. Bd1 {[%emt 0:02:36]} h4 {[%emt 0:01:10]} 57. Rd2 {[%emt 0:01:19]} hxg3 {[%emt 0:00:33]} 58. hxg3 {[%emt 0:00:08]} Be7 {[%emt 0:00:27]} 59. Kd5 {[%emt 0:00:37]} Bb4 {[%emt 0:02:21]} 60. Rb2 {[%emt 0:00:52]} Ba5 {[%emt 0:00:07]} 61. Kc6 {[%emt 0:00:48]} Kf5 {[%emt 0:00:37]} 62. Re2 {[%emt 0:01:20]} Kf6 {[%emt 0:00:19]} 63. Bb3 {[%emt 0:00:26]} Ke7 {[%emt 0:00:41]} 64. Rf2 {[%emt 0:00:30]} Na7+ {[%emt 0:01:18]} 65. Kc5 {[%emt 0:00:15]} Nc8 {[%emt 0:00:23]} 66. Rf7+ {[%emt 0:00:26]} Ke8 {[%emt 0:00:28]} 67. Rh7 {[%emt 0:00:14]} Kd8 {[%emt 0:01:32]} 68. Rg7 {[%emt 0:01:42]} Ne7 {[%emt 0:00:35]} 69. b6 {[%emt 0:00:41]} Bd2 {[%emt 0:00:52]} 70. b7 {[%emt 0:00:46]} Be3+ {[%emt 0:00:05]} 71. Kb5 {[%emt 0:00:36]} Ba7 {[%emt 0:00:11]} 72. Rh7 {[%emt 0:00:49]} Bb8 {[%emt 0:00:22]} 73. Kb6 {[%emt 0:00:22]} Bd6 {[%emt 0:00:25]} 74. Rh8+ {[%emt 0:00:21]} Ng8 {[%emt 0:01:59]} 1-0

[Event "ESCC-50 2022"]
[Site "Lublin"]
[Date "2022.07.10"]
[Round "6.1"]
[White "Klimaszewski, Dariusz"]
[Black "Mrva, Martin"]
[Result "0-1"]
[ECO "C44"]
[WhiteElo "2152"]
[BlackElo "2385"]
[Annotator "RC"]
[PlyCount "120"]
[EventDate "2022.07.05"]
[EventType "swiss"]
[EventCountry "POL"]
[SourceTitle "playchess.com"]
[Source "ChessBase"]
[SourceQuality "1"]
[TimeControl "40/5400+30:1800+30"]

1. e4 {[%emt 0:00:06]} e5 {[%emt 0:00:07]} 2. Nf3 {[%emt 0:00:17]} Nc6 {[%emt 0:00:09]} 3. d4 {[%emt 0:01:33]} exd4 {[%emt 0:00:19]} 4. Nxd4 {[%emt 0:00:09]} Nf6 {[%emt 0:00:18]} 5. Nc3 {[%emt 0:00:13]} Bb4 {[%emt 0:00:25]} 6. Nxc6 {[%emt 0:00:25]} bxc6 {[%emt 0:00:04]} 7. Bd3 {[%emt 0:00:09]} d5 {[%emt 0:00:16]} 8. exd5 {[%emt 0:00:26]} O-O {[%emt 0:00:49]} 9. O-O {[%emt 0:00:28]} Bg4 {[%emt 0:06:33]} 10. f3 {[%emt 0:04:21]} Bh5 {[%emt 0:00:45]} 11. Bg5 {[%emt 0:00:48]} cxd5 {[%emt 0:10:33]} 12. Bb5 {[%emt 0:08:22]} c6 {[%emt 0:02:31]} 13. Bd3 {[%emt 0:02:04]} Qd6 {[%emt 0:04:16]} 14. Kh1 {[%emt 0:02:24]} Qe5 {[%emt 0:10:36]} 15. Bd2 {[%emt 0:08:06]} Rae8 {[%emt 0:13:23]} 16. Qe1 {[%emt 0:04:55]} Qd4 {[%emt 0:13:19]} 17. Qf2 {[%emt 0:01:29]} Qxf2 {[%emt 0:00:13]} 18. Rxf2 {[%emt 0:00:09]} Bg6 {[%emt 0:00:19]} 19. Na4 {[%emt 0:03:48]} Bd6 {[%emt 0:01:21]} 20. g3 {[%emt 0:08:24]} Nd7 {[%emt 0:03:59]} 21. Bxg6 {[%emt 0:08:32]} fxg6 {[%emt 0:00:12]} 22. Rd1 {[%emt 0:00:24]} Re6 {[%emt 0:04:49]} 23. Kg2 {[%emt 0:01:02]} Nc5 {[%emt 0:07:23]} 24. Nc3 {[%emt 0:04:31]} Rfe8 {[%emt 0:00:20]} 25. Bc1 {[%emt 0:04:30]} Nd7 {[%emt 0:02:38]} 26. Na4 {[%emt 0:01:52]} Nb6 {[%emt 0:01:08]} 27. Nxb6 {[%emt 0:01:23]} axb6 {[%emt 0:02:37]} 28. Kf1 {[%emt 0:01:05]} Bc5 {[%emt 0:01:09]} 29. Rg2 {[%emt 0:00:32]} h6 {[%emt 0:01:44]} 30. Bd2 {[%emt 0:02:26]} g5 {[%emt 0:00:28]} 31. f4 {[%emt 0:01:44]} g4 {[%emt 0:00:26]} 32. Re1 {[%emt 0:00:36]} Kf7 {[%emt 0:03:15]} 33. Rxe6 {[%emt 0:00:16]} Rxe6 {[%emt 0:00:04]} 34. Re2 {[%emt 0:00:46]} h5 {[%emt 0:00:36]} 35. Rxe6 {[%emt 0:00:41]} Kxe6 {[%emt 0:00:05]} 36. Ke2 {[%emt 0:00:14]} Kf5 {[%emt 0:01:19]} 37. Be3 {[%emt 0:00:43]} d4 {[%emt 0:05:58]} 38. b4 {[%emt 0:01:05]} Bxb4 {[%emt 0:00:04]} 39. Bxd4 {[%emt 0:00:10]} b5 {[%emt 0:00:04]} 40. Kd3 {[%emt 0:00:00]} g6 {[%emt 0:00:00]} 41. c4 {[%emt 0:02:39]} h4 {[%emt 0:01:37]} 42. cxb5 {[%emt 0:03:42]} cxb5 {[%emt 0:00:11]} 43. Bf2 {[%emt 0:00:50]} h3 {[%emt 0:01:52]} 44. Kd4 {[%emt 0:04:28]} Bd2 {[%emt 0:02:20]} 45. Kd5 {[%emt 0:02:26]} Bc3 {[%emt 0:00:31]} 46. Be3 {[%emt 0:02:07]} Be1 {[%emt 0:00:35]} 47. Bg1 {[%emt 0:00:10]} Ba5 {[%emt 0:03:48]} 48. Bf2 {[%emt 0:02:35]} Bd2 {[%emt 0:00:22]} 49. Bd4 {[%emt 0:00:36]} Bxf4 {[%emt 0:02:16]} 50. Bf2 {[%emt 0:13:51]} Bd2 {[%emt 0:00:44]} 51. Kd4 {[%emt 0:06:05]} Ke6 {[%emt 0:05:12]} 52. Kd3 {[%emt 0:05:14]} Bg5 {[%emt 0:04:36]} 53. Ke4 {[%emt 0:01:43]} Kd6 {[%emt 0:00:13]} 54. Ba7 {[%emt 0:03:07]} Kc6 {[%emt 0:03:19]} 55. Ke5 {[%emt 0:02:07]} b4 {[%emt 0:00:25]} 56. Ke6 {[%emt 0:00:44]} Bd8 {[%emt 0:01:35]} 57. Bf2 {[%emt 0:00:14]} Bb6 {[%emt 0:01:12]} 58. Be1 {[%emt 0:00:09]} Bd4 {[%emt 0:02:19]} 59. Kf7 {[%emt 0:00:43]} Kd5 {[%emt 0:00:08]} 60. Kxg6 {[%emt 0:00:11]} Ke4 0-1

[Event "ESCC-50 2022"]
[Site "Lublin"]
[Date "2022.07.10"]
[Round "6.2"]
[White "Garabetyan, Arno"]
[Black "Tereladze, Sopiko"]
[Result "1-0"]
[ECO "E11"]
[WhiteElo "2056"]
[BlackElo "2141"]
[Annotator "RC"]
[PlyCount "39"]
[EventDate "2022.07.05"]
[EventType "swiss"]
[EventCountry "POL"]
[SourceTitle "playchess.com"]
[Source "ChessBase"]
[SourceQuality "1"]
[TimeControl "40/5400+30:1800+30"]

1. d4 {[%emt 0:00:03]} Nf6 {[%emt 0:00:19]} 2. c4 {[%emt 0:00:08]} e6 {[%emt 0:00:05]} 3. Nf3 {[%emt 0:00:10]} Bb4+ {[%emt 0:00:23]} 4. Nbd2 {[%emt 0:00:45]} O-O {[%emt 0:01:28]} 5. a3 {[%emt 0:00:08]} Bxd2+ {[%emt 0:00:59]} 6. Bxd2 {[%emt 0:00:18]} Ne4 {[%emt 0:01:44]} 7. g3 {[%emt 0:03:50]} Nxd2 {[%emt 0:00:35]} 8. Qxd2 {[%emt 0:00:18]} d6 {[%emt 0:02:53]} 9. Bg2 {[%emt 0:00:40]} Qe7 {[%emt 0:01:41]} 10. O-O {[%emt 0:01:17]} Nd7 {[%emt 0:03:04]} 11. Rfd1 {[%emt 0:01:37]} Rb8 {[%emt 0:04:45]} 12. Qa5 {[%emt 0:02:49]} Nf6 {[%emt 0:08:50]} 13. Qxa7 {[%emt 0:01:04]} Bd7 {[%emt 0:00:08]} 14. Qa5 {[%emt 0:00:13]} b5 {[%emt 0:01:08]} 15. c5 {[%emt 0:02:16]} dxc5 {[%emt 0:02:10]} 16. Qxc7 {[%emt 0:03:30]} Rfc8 {[%emt 0:00:38]} 17. Qe5 {[%emt 0:00:25]} c4 {[%emt 0:02:48]} 18. d5 {[%emt 0:06:36]} Qc5 {[%emt 0:07:29]} 19. dxe6 {[%emt 0:01:47]} Bxe6 {[%emt 0:01:25]} 20. Rd8+ {[%emt 0:00:52]} 1-0

[Event "ESCC-50 2022"]
[Site "Lublin"]
[Date "2022.07.10"]
[Round "6.3"]
[White "Druckenthaner, Andreas"]
[Black "Baliuniene, Margarita"]
[Result "1-0"]
[ECO "B00"]
[WhiteElo "2272"]
[BlackElo "1935"]
[Annotator "RC"]
[PlyCount "85"]
[EventDate "2022.07.05"]
[EventType "swiss"]
[EventCountry "POL"]
[SourceTitle "playchess.com"]
[Source "ChessBase"]
[SourceQuality "1"]
[TimeControl "40/5400+30:1800+30"]

1. e4 {[%emt 0:00:06]} b6 {[%emt 0:00:08]} 2. d4 {[%emt 0:00:28]} e6 {[%emt 0:00:14]} 3. Nf3 {[%emt 0:00:51]} Bb7 {[%emt 0:00:10]} 4. Bd3 {[%emt 0:00:16]} Ne7 {[%emt 0:00:55]} 5. Nc3 {[%emt 0:03:45]} g6 {[%emt 0:01:58]} 6. Be3 {[%emt 0:05:40]} Bg7 {[%emt 0:00:13]} 7. Qd2 {[%emt 0:00:21]} h6 {[%emt 0:01:45]} 8. O-O {[%emt 0:04:23]} d6 {[%emt 0:00:31]} 9. d5 {[%emt 0:07:41]} e5 {[%emt 0:00:31]} 10. a4 {[%emt 0:04:04]} Nd7 {[%emt 0:01:27]} 11. a5 {[%emt 0:01:28]} g5 {[%emt 0:02:42]} 12. h4 {[%emt 0:09:56]} f6 {[%emt 0:03:11]} 13. Ne2 {[%emt 0:03:29]} O-O {[%emt 0:00:56]} 14. Ng3 {[%emt 0:01:53]} Qe8 {[%emt 0:09:03]} 15. c4 {[%emt 0:02:52]} Ng6 {[%emt 0:02:26]} 16. Nf5 {[%emt 0:01:46]} Nf4 {[%emt 0:00:37]} 17. Bc2 {[%emt 0:03:00]} Qh5 {[%emt 0:02:02]} 18. Bd1 {[%emt 0:05:48]} Qf7 {[%emt 0:05:10]} 19. b4 {[%emt 0:02:41]} bxa5 {[%emt 0:07:06]} 20. Rxa5 {[%emt 0:00:23]} Nb6 {[%emt 0:00:32]} 21. Qc2 {[%emt 0:06:59]} Bc8 {[%emt 0:03:40]} 22. Ng3 {[%emt 0:04:21]} g4 {[%emt 0:09:55]} 23. Nd2 {[%emt 0:01:46]} f5 {[%emt 0:03:31]} 24. Nxf5 {[%emt 0:01:27]} Bxf5 {[%emt 0:00:17]} 25. exf5 {[%emt 0:00:08]} h5 {[%emt 0:03:07]} 26. g3 {[%emt 0:01:00]} Nh3+ {[%emt 0:00:23]} 27. Kh2 {[%emt 0:01:49]} Qxf5 {[%emt 0:07:29]} 28. Qxf5 {[%emt 0:00:19]} Rxf5 {[%emt 0:00:04]} 29. Bc2 {[%emt 0:01:07]} Rf6 {[%emt 0:04:11]} 30. Bd3 {[%emt 0:03:42]} Raf8 {[%emt 0:02:08]} 31. Ne4 {[%emt 0:01:25]} R6f7 {[%emt 0:02:13]} 32. Rxa7 {[%emt 0:01:10]} Nc8 {[%emt 0:00:09]} 33. Ra8 {[%emt 0:00:52]} Bf6 {[%emt 0:02:42]} 34. f3 {[%emt 0:01:47]} Be7 {[%emt 0:00:33]} 35. Bh6 {[%emt 0:01:30]} Re8 {[%emt 0:02:23]} 36. fxg4 {[%emt 0:00:17]} hxg4 {[%emt 0:00:06]} 37. Rxf7 {[%emt 0:00:27]} Kxf7 {[%emt 0:00:06]} 38. Be2 {[%emt 0:01:44]} Rg8 {[%emt 0:01:57]} 39. Be3 {[%emt 0:02:11]} Nf4 {[%emt 0:05:26]} 40. gxf4 {[%emt 0:00:00]} Bxh4 {[%emt 0:00:00]} 41. f5 {[%emt 0:01:58]} g3+ {[%emt 0:02:14]} 42. Kg2 {[%emt 0:00:19]} Ne7 {[%emt 0:00:41]} 43. Bh5+ {[%emt 0:00:15]} 1-0